[Event "Wuerttemberg Rapid Teams 2024"]
[Site "B?blingen, Germany"]
[Date "2024.04.13"]
[Round "4.14"]
[White "Weiss, Oliver"]
[Black "Narr, Kevin"]
[Result "1-0"]
[ECO "D00"]
[WhiteElo "2220"]
[BlackElo "1977"]
[Annotator "RC"]
[PlyCount "69"]
[EventDate "2024.04.13"]
[EventType "team-tourn"]
[SourceTitle "playchess.com"]
[Source "ChessBase"]
[SourceQuality "1"]
[TimeControl "900+5"]

1. d4 {[%emt 0:01:19]} d5 {[%emt 0:00:05]} 2. Bf4 {[%emt 0:00:03]} e6 {[%emt 0:00:05]} 3. e3 {[%emt 0:00:06]} Bd6 {[%emt 0:00:04]} 4. Bg3 {[%emt 0:00:05]} Nf6 {[%emt 0:00:13]} 5. Nd2 {[%emt 0:00:07]} O-O {[%emt 0:00:20]} 6. Bd3 {[%emt 0:00:10]} c5 {[%emt 0:00:14]} 7. c3 {[%emt 0:00:03]} b6 {[%emt 0:00:39]} 8. Ngf3 {[%emt 0:00:19]} Qc7 {[%emt 0:00:17]} 9. Ne5 {[%emt 0:00:20]} Nbd7 {[%emt 0:00:20]} 10. f4 {[%emt 0:00:06]} Bb7 {[%emt 0:00:36]} 11. Qf3 {[%emt 0:00:02]} a5 {[%emt 0:01:03]} 12. O-O {[%emt 0:00:35]} Ba6 {[%emt 0:00:17]} 13. Bxa6 {[%emt 0:00:04]} Rxa6 {[%emt 0:00:00]} 14. a4 {[%emt 0:00:13]} Raa8 {[%emt 0:02:14]} 15. Bh4 {[%emt 0:00:31]} Rab8 {[%emt 0:00:13]} 16. Qe2 {[%emt 0:00:37]} Ne4 {[%emt 0:00:26]} 17. Nxe4 {[%emt 0:00:14]} dxe4 {[%emt 0:00:01]} 18. Qb5 {[%emt 0:02:04]} Rb7 {[%emt 0:00:09]} 19. Rad1 {[%emt 0:00:57]} Nf6 {[%emt 0:01:41]} 20. Bxf6 {[%emt 0:02:31]} gxf6 {[%emt 0:00:01]} 21. Nc4 {[%emt 0:00:11]} f5 {[%emt 0:02:07]} 22. d5 {[%emt 0:00:21]} e5 {[%emt 0:02:16]} 23. fxe5 {[%emt 0:00:10]} Bxe5 {[%emt 0:00:00]} 24. d6 {[%emt 0:00:04]} Bxh2+ {[%emt 0:00:14]} 25. Kxh2 {[%emt 0:00:04]} Qd8 {[%emt 0:00:02]} 26. Qc6 {[%emt 0:01:26]} Rb8 {[%emt 0:00:20]} 27. d7 {[%emt 0:00:15]} Qh4+ {[%emt 0:00:42]} 28. Kg1 {[%emt 0:00:03]} Kh8 {[%emt 0:00:03]} 29. Rxf5 {[%emt 0:00:09]} f6 {[%emt 0:00:09]} 30. Qd6 {[%emt 0:01:01]} Rbd8 {[%emt 0:00:12]} 31. Nxb6 {[%emt 0:00:27]} Qg4 {[%emt 0:00:17]} 32. Rdf1 {[%emt 0:00:13]} Qe2 {[%emt 0:00:23]} 33. Rxf6 {[%emt 0:00:52]} Qxe3+ {[%emt 0:00:06]} 34. Kh1 {[%emt 0:00:06]} Rg8 {[%emt 0:00:26]} 35. Qe5 {[%emt 0:00:32]} 1-0

[Event "Wuerttemberg Rapid Teams 2024"]
[Site "B?blingen, Germany"]
[Date "2024.04.13"]
[Round "4.15"]
[White "Wunder, Niklas"]
[Black "Sulzbacher, Kurt"]
[Result "1-0"]
[ECO "C51"]
[WhiteElo "2071"]
[BlackElo "1976"]
[Annotator "NA RC"]
[PlyCount "73"]
[EventDate "2024.04.13"]
[EventType "team-tourn"]
[SourceTitle "playchess.com"]
[Source "ChessBase"]
[SourceQuality "1"]
[TimeControl "900+5"]

1. e4 {[%emt 0:00:02]} e5 {[%emt 0:00:02]} 2. Nf3 {[%emt 0:00:02]} Nc6 {[%emt 0:00:02]} 3. Bc4 {[%emt 0:00:01]} Bc5 {[%emt 0:00:05]} 4. b4 {[%emt 0:00:01]} Bxb4 {[%emt 0:00:05]} 5. c3 {[%emt 0:00:01]} Be7 {[%emt 0:00:32]} 6. d4 {[%emt 0:00:02]} Na5 {[%emt 0:00:16]} 7. Be2 {[%emt 0:00:01]} d6 {[%emt 0:00:24]} 8. Qa4+ {[%emt 0:00:38]} c6 {[%emt 0:00:24]} 9. dxe5 {[%emt 0:00:02]} dxe5 {[%emt 0:00:09]} 10. Nxe5 {[%emt 0:00:02]} Nf6 {[%emt 0:00:51]} 11. O-O {[%emt 0:00:05]} O-O {[%emt 0:00:15]} 12. Rd1 {[%emt 0:00:04]} Qc7 {[%emt 0:01:54]} 13. Bf4 {[%emt 0:00:03]} b5 {[%emt 0:00:19]} 14. Qc2 {[%emt 0:00:02]} Qb6 {[%emt 0:00:29]} 15. Nd2 {[%emt 0:01:20]} Be6 {[%emt 0:00:48]} 16. a4 {[%emt 0:01:11]} Rfd8 {[%emt 0:00:50]} 17. axb5 {[%emt 0:00:14]} cxb5 {[%emt 0:00:02]} 18. Rdb1 {[%emt 0:02:29]} a6 {[%emt 0:00:27]} 19. Rxa5 {[%emt 0:00:04]} Qxa5 {[%emt 0:00:08]} 20. Nc6 {[%emt 0:00:02]} Qa3 {[%emt 0:00:32]} 21. Nxd8 {[%emt 0:02:03]} Rxd8 {[%emt 0:00:22]} 22. Nf3 {[%emt 0:00:31]} Rc8 {[%emt 0:00:31]} 23. Be5 {[%emt 0:00:55]} Bc4 {[%emt 0:00:51]} 24. Bxf6 {[%emt 0:01:57]} Bxf6 {[%emt 0:00:09]} 25. e5 {[%emt 0:00:01]} Be7 {[%emt 0:00:38]} 26. Qf5 {[%emt 0:01:13]} Qc5 {[%emt 0:00:19]} 27. Bxc4 {[%emt 0:00:22]} Qxc4 {[%emt 0:00:02]} 28. Re1 {[%emt 0:00:41]} g6 {[%emt 0:01:23]} 29. Qd7 {[%emt 0:00:02]} Qe6 {[%emt 0:00:30]} 30. Qb7 {[%emt 0:00:18]} Rxc3 {[%emt 0:01:37]} 31. Nd4 {[%emt 0:00:01]} Qc4 {[%emt 0:00:39]} 32. Qxe7 {[%emt 0:00:17]} Qxd4 {[%emt 0:01:06]} 33. e6 {[%emt 0:00:20]} Qg7 {[%emt 0:00:50]} 34. Qe8+ {[%emt 0:00:19]} Qf8 {[%emt 0:00:02]} 35. exf7+ {[%emt 0:00:01]} Kg7 {[%emt 0:00:03]} 36. Qe5+ {[%emt 0:00:02]} Kxf7 {[%emt 0:00:02]} 37. Qxc3 {[%emt 0:00:04]} 1-0

[Event "Wuerttemberg Rapid Teams 2024"]
[Site "B?blingen, Germany"]
[Date "2024.04.13"]
[Round "4.16"]
[White "Sokratov, Stanislav"]
[Black "Kaufmann, Gunther"]
[Result "1-0"]
[ECO "A45"]
[WhiteElo "2146"]
[BlackElo "1852"]
[Annotator "RC"]
[PlyCount "59"]
[EventDate "2024.04.13"]
[EventType "team-tourn"]
[SourceTitle "playchess.com"]
[Source "ChessBase"]
[SourceQuality "1"]
[TimeControl "900+5"]

1. d4 {[%emt 0:00:05]} Nf6 {[%emt 0:00:03]} 2. Bf4 {[%emt 0:00:00]} g6 {[%emt 0:00:04]} 3. Nc3 {[%emt 0:00:00]} d5 {[%emt 0:00:04]} 4. e3 {[%emt 0:00:00]} Bg7 {[%emt 0:00:02]} 5. h4 {[%emt 0:00:01]} Nh5 {[%emt 0:01:01]} 6. Bh2 {[%emt 0:00:17]} c6 {[%emt 0:00:14]} 7. Be2 {[%emt 0:00:07]} Nf6 {[%emt 0:00:13]} 8. h5 {[%emt 0:00:15]} Qb6 {[%emt 0:00:22]} 9. Rb1 {[%emt 0:01:15]} Qa5 {[%emt 0:02:18]} 10. Qd2 {[%emt 0:01:18]} Bf5 {[%emt 0:00:54]} 11. h6 {[%emt 0:01:53]} Bf8 {[%emt 0:01:30]} 12. f3 {[%emt 0:00:31]} Nbd7 {[%emt 0:00:13]} 13. g4 {[%emt 0:00:15]} Be6 {[%emt 0:00:25]} 14. g5 {[%emt 0:01:54]} Nh5 {[%emt 0:01:22]} 15. f4 {[%emt 0:00:29]} Bf5 {[%emt 0:02:07]} 16. a3 {[%emt 0:00:50]} Nb6 {[%emt 0:00:39]} 17. Nd1 {[%emt 0:03:47]} Qxd2+ {[%emt 0:00:15]} 18. Kxd2 {[%emt 0:00:01]} O-O-O {[%emt 0:00:25]} 19. Nf3 {[%emt 0:00:31]} f6 {[%emt 0:00:57]} 20. Nf2 {[%emt 0:00:41]} Nd7 {[%emt 0:02:28]} 21. b4 {[%emt 0:00:51]} Be4 {[%emt 0:00:20]} 22. Rhc1 {[%emt 0:00:09]} Bxf3 {[%emt 0:00:12]} 23. Bxf3 {[%emt 0:00:01]} Nb6 {[%emt 0:00:09]} 24. Be2 {[%emt 0:00:08]} Nc4+ {[%emt 0:00:12]} 25. Bxc4 {[%emt 0:00:02]} dxc4 {[%emt 0:00:01]} 26. Kc3 {[%emt 0:00:22]} b5 {[%emt 0:00:02]} 27. Ne4 {[%emt 0:00:09]} Rd7 {[%emt 0:00:19]} 28. a4 {[%emt 0:00:12]} a6 {[%emt 0:00:03]} 29. Ra1 {[%emt 0:00:07]} Kb7 {[%emt 0:00:02]} 30. Nc5+ {[%emt 0:00:04]} 1-0

[Event "Wuerttemberg Rapid Teams 2024"]
[Site "B?blingen, Germany"]
[Date "2024.04.13"]
[Round "4.17"]
[White "Li, Yunqi"]
[Black "Kerpe, Andreas"]
[Result "1-0"]
[ECO "C02"]
[WhiteElo "1940"]
[BlackElo "2146"]
[Annotator "RC"]
[PlyCount "51"]
[EventDate "2024.04.13"]
[EventType "team-tourn"]
[SourceTitle "playchess.com"]
[Source "ChessBase"]
[SourceQuality "1"]
[TimeControl "900+5"]

1. e4 {[%emt 0:00:11]} e6 {[%emt 0:00:01]} 2. d4 {[%emt 0:00:04]} d5 {[%emt 0:00:01]} 3. e5 {[%emt 0:00:01]} c5 {[%emt 0:00:02]} 4. c3 {[%emt 0:00:01]} Nc6 {[%emt 0:00:02]} 5. Nf3 {[%emt 0:00:00]} Bd7 {[%emt 0:00:02]} 6. Be2 {[%emt 0:00:02]} f6 {[%emt 0:00:03]} 7. O-O {[%emt 0:00:02]} fxe5 {[%emt 0:00:08]} 8. Nxe5 {[%emt 0:00:02]} Nxe5 {[%emt 0:00:07]} 9. dxe5 {[%emt 0:00:01]} Qc7 {[%emt 0:00:08]} 10. f4 {[%emt 0:00:02]} O-O-O {[%emt 0:00:04]} 11. Nd2 {[%emt 0:00:51]} Ne7 {[%emt 0:00:06]} 12. Nf3 {[%emt 0:00:04]} Nc6 {[%emt 0:00:03]} 13. Be3 {[%emt 0:01:37]} Kb8 {[%emt 0:00:13]} 14. a3 {[%emt 0:00:39]} Be7 {[%emt 0:00:06]} 15. b4 {[%emt 0:00:03]} c4 {[%emt 0:00:03]} 16. a4 {[%emt 0:00:43]} h6 {[%emt 0:01:52]} 17. Qd2 {[%emt 0:01:07]} Rhg8 {[%emt 0:00:22]} 18. Rfb1 {[%emt 0:01:17]} b6 {[%emt 0:00:07]} 19. Kh1 {[%emt 0:02:32]} Rdf8 {[%emt 0:02:11]} 20. a5 {[%emt 0:01:59]} b5 {[%emt 0:00:26]} 21. a6 {[%emt 0:00:22]} Be8 {[%emt 0:03:17]} 22. Nd4 {[%emt 0:01:26]} Nxd4 {[%emt 0:00:09]} 23. Qxd4 {[%emt 0:00:05]} g5 {[%emt 0:01:20]} 24. Rf1 {[%emt 0:00:31]} Bd8 {[%emt 0:01:31]} 25. Bg4 {[%emt 0:00:15]} Qe7 {[%emt 0:02:39]} 26. Bxe6 {[%emt 0:00:32]} 1-0

[Event "Wuerttemberg Rapid Teams 2024"]
[Site "B?blingen, Germany"]
[Date "2024.04.13"]
[Round "4.18"]
[White "Bodriyenko, Markiyan"]
[Black "Vaysberg, Alexander"]
[Result "1-0"]
[ECO "C30"]
[WhiteElo "1728"]
[BlackElo "2152"]
[Annotator "RC"]
[PlyCount "115"]
[EventDate "2024.04.13"]
[EventType "team-tourn"]
[SourceTitle "playchess.com"]
[Source "ChessBase"]
[SourceQuality "1"]
[TimeControl "900+5"]

1. e4 {[%emt 0:00:02]} e5 {[%emt 0:00:10]} 2. Nc3 {[%emt 0:00:02]} Nc6 {[%emt 0:00:02]} 3. Bc4 {[%emt 0:00:01]} Nf6 {[%emt 0:00:09]} 4. d3 {[%emt 0:00:02]} Bc5 {[%emt 0:00:24]} 5. f4 {[%emt 0:00:03]} d6 {[%emt 0:00:31]} 6. Nf3 {[%emt 0:00:02]} Bg4 {[%emt 0:01:48]} 7. Na4 {[%emt 0:00:07]} Bb6 {[%emt 0:04:11]} 8. Nxb6 {[%emt 0:00:02]} axb6 {[%emt 0:00:01]} 9. h3 {[%emt 0:00:15]} Bxf3 {[%emt 0:00:25]} 10. Qxf3 {[%emt 0:00:02]} Na5 {[%emt 0:00:43]} 11. O-O {[%emt 0:00:44]} Nxc4 {[%emt 0:00:02]} 12. dxc4 {[%emt 0:00:01]} Qe7 {[%emt 0:00:27]} 13. f5 {[%emt 0:00:18]} Nd7 {[%emt 0:00:31]} 14. Qg4 {[%emt 0:01:14]} f6 {[%emt 0:00:04]} 15. Bd2 {[%emt 0:00:20]} Qf7 {[%emt 0:00:23]} 16. b3 {[%emt 0:00:08]} g5 {[%emt 0:01:08]} 17. fxg6 {[%emt 0:00:22]} hxg6 {[%emt 0:00:08]} 18. Rf2 {[%emt 0:00:30]} Ke7 {[%emt 0:00:35]} 19. a4 {[%emt 0:00:20]} Rag8 {[%emt 0:00:37]} 20. Raf1 {[%emt 0:00:08]} Qe6 {[%emt 0:00:02]} 21. Qe2 {[%emt 0:00:43]} Rf8 {[%emt 0:00:21]} 22. Rf3 {[%emt 0:00:29]} f5 {[%emt 0:00:06]} 23. Bg5+ {[%emt 0:00:08]} Ke8 {[%emt 0:00:01]} 24. exf5 {[%emt 0:00:34]} gxf5 {[%emt 0:00:04]} 25. Qf2 {[%emt 0:00:15]} f4 {[%emt 0:00:07]} 26. Re1 {[%emt 0:00:04]} Qg6 {[%emt 0:02:01]} 27. Bxf4 {[%emt 0:00:09]} Rxf4 {[%emt 0:00:29]} 28. Rxf4 {[%emt 0:00:10]} Rxh3 {[%emt 0:00:03]} 29. Rh4 {[%emt 0:00:20]} Rg3 {[%emt 0:00:34]} 30. Rh8+ {[%emt 0:00:29]} Ke7 {[%emt 0:00:05]} 31. Rf1 {[%emt 0:00:19]} Qg7 {[%emt 0:00:20]} 32. Rh2 {[%emt 0:00:36]} Nc5 {[%emt 0:00:04]} 33. Qf5 {[%emt 0:00:13]} Ne6 {[%emt 0:00:06]} 34. Rh7 {[%emt 0:00:07]} Rxg2+ {[%emt 0:00:36]} 35. Kh1 {[%emt 0:00:01]} Nf4 {[%emt 0:00:05]} 36. Rxg7+ {[%emt 0:00:03]} Rxg7 {[%emt 0:00:02]} 37. Re1 {[%emt 0:00:58]} Rf7 {[%emt 0:00:14]} 38. Qg5+ {[%emt 0:00:06]} Ke6 {[%emt 0:00:02]} 39. Qg4+ {[%emt 0:00:22]} Ke7 {[%emt 0:00:02]} 40. b4 {[%emt 0:00:20]} Kf6 {[%emt 0:00:02]} 41. c5 {[%emt 0:00:10]} Rh7+ {[%emt 0:00:02]} 42. Kg1 {[%emt 0:00:03]} Rg7 {[%emt 0:00:13]} 43. Qxg7+ {[%emt 0:00:06]} Kxg7 {[%emt 0:00:01]} 44. cxd6 {[%emt 0:00:08]} cxd6 {[%emt 0:00:01]} 45. Kf2 {[%emt 0:00:13]} Kf6 {[%emt 0:00:02]} 46. Kf3 {[%emt 0:00:12]} Kf5 {[%emt 0:00:06]} 47. Rd1 {[%emt 0:00:20]} d5 {[%emt 0:00:02]} 48. a5 {[%emt 0:00:07]} bxa5 {[%emt 0:00:01]} 49. bxa5 {[%emt 0:00:02]} e4+ {[%emt 0:00:03]} 50. Kf2 {[%emt 0:00:06]} Ke5 {[%emt 0:00:03]} 51. Rb1 {[%emt 0:00:32]} d4 {[%emt 0:00:17]} 52. Rb5+ {[%emt 0:00:08]} Nd5 {[%emt 0:00:03]} 53. Rxb7 {[%emt 0:00:04]} e3+ {[%emt 0:00:05]} 54. Ke1 {[%emt 0:00:05]} Kd6 {[%emt 0:00:09]} 55. a6 {[%emt 0:00:23]} Kc6 {[%emt 0:00:07]} 56. Rb3 {[%emt 0:00:02]} Nc7 {[%emt 0:00:14]} 57. a7 {[%emt 0:00:01]} Kc5 {[%emt 0:00:04]} 58. Rb8 {[%emt 0:00:14]} 1-0

[Event "Wuerttemberg Rapid Teams 2024"]
[Site "B?blingen, Germany"]
[Date "2024.04.13"]
[Round "4.19"]
[White "Retzlaff, Kian"]
[Black "Jerie, Sven"]
[Result "1-0"]
[ECO "B48"]
[WhiteElo "1793"]
[BlackElo "2018"]
[Annotator "NA RC"]
[PlyCount "63"]
[EventDate "2024.04.13"]
[EventType "team-tourn"]
[SourceTitle "playchess.com"]
[Source "ChessBase"]
[SourceQuality "1"]
[TimeControl "900+5"]

1. e4 {[%emt 0:00:03]} c5 {[%emt 0:00:01]} 2. Nf3 {[%emt 0:00:01]} e6 {[%emt 0:00:01]} 3. d4 {[%emt 0:00:03]} cxd4 {[%emt 0:00:01]} 4. Nxd4 {[%emt 0:00:01]} Nc6 {[%emt 0:00:01]} 5. Nc3 {[%emt 0:00:05]} Qc7 {[%emt 0:00:02]} 6. Be3 {[%emt 0:00:05]} a6 {[%emt 0:00:01]} 7. Qf3 {[%emt 0:00:17]} Nf6 {[%emt 0:00:22]} 8. Qg3 {[%emt 0:00:14]} d6 {[%emt 0:00:37]} 9. O-O-O {[%emt 0:00:12]} b5 {[%emt 0:00:16]} 10. a3 {[%emt 0:00:59]} Bd7 {[%emt 0:00:55]} 11. f4 {[%emt 0:00:22]} Qa5 {[%emt 0:00:54]} 12. Nb3 {[%emt 0:01:17]} Qc7 {[%emt 0:00:20]} 13. Be2 {[%emt 0:00:52]} b4 {[%emt 0:00:35]} 14. axb4 {[%emt 0:00:02]} Nxb4 {[%emt 0:00:03]} 15. Rd2 {[%emt 0:01:14]} d5 {[%emt 0:03:00]} 16. exd5 {[%emt 0:00:44]} Nfxd5 {[%emt 0:00:25]} 17. Nxd5 {[%emt 0:00:21]} Nxd5 {[%emt 0:00:12]} 18. Bf3 {[%emt 0:02:24]} Bc6 {[%emt 0:01:49]} 19. Bd4 {[%emt 0:00:39]} Rc8 {[%emt 0:01:06]} 20. Be5 {[%emt 0:00:10]} Qb6 {[%emt 0:00:57]} 21. Re1 {[%emt 0:00:14]} Bb7 {[%emt 0:00:28]} 22. Bxd5 {[%emt 0:00:08]} Bxd5 {[%emt 0:00:07]} 23. Rxd5 {[%emt 0:00:07]} Bb4 {[%emt 0:03:12]} 24. Qxg7 {[%emt 0:00:41]} Rf8 {[%emt 0:00:27]} 25. Bc3 {[%emt 0:00:15]} Bxc3 {[%emt 0:00:25]} 26. bxc3 {[%emt 0:00:02]} Qc6 {[%emt 0:00:43]} 27. Rc5 {[%emt 0:00:11]} Qd7 {[%emt 0:00:13]} 28. Rd1 {[%emt 0:00:16]} Qb7 {[%emt 0:00:05]} 29. Qd4 {[%emt 0:00:10]} Rg8 {[%emt 0:00:04]} 30. Na5 {[%emt 0:00:11]} Qb8 {[%emt 0:00:05]} 31. Qd7+ {[%emt 0:00:05]} Kf8 {[%emt 0:00:01]} 32. Rxc8+ {[%emt 0:00:01]} 1-0

[Event "Wuerttemberg Rapid Teams 2024"]
[Site "B?blingen, Germany"]
[Date "2024.04.13"]
[Round "4.20"]
[White "Retzlaff, Nick"]
[Black "Schaffert, Walter"]
[Result "0-1"]
[ECO "B01"]
[WhiteElo "1707"]
[BlackElo "2033"]
[Annotator "NA RC"]
[PlyCount "81"]
[EventDate "2024.04.13"]
[EventType "team-tourn"]
[SourceTitle "playchess.com"]
[Source "ChessBase"]
[SourceQuality "1"]
[TimeControl "900+5"]

1. e4 {[%emt 0:00:01]} d5 {[%emt 0:00:01]} 2. exd5 {[%emt 0:00:01]} Qxd5 {[%emt 0:00:01]} 3. Nc3 {[%emt 0:00:01]} Qd6 {[%emt 0:00:01]} 4. Nf3 {[%emt 0:00:02]} Nf6 {[%emt 0:00:02]} 5. d4 {[%emt 0:00:01]} a6 {[%emt 0:00:01]} 6. Bc4 {[%emt 0:00:05]} b5 {[%emt 0:00:02]} 7. Bd3 {[%emt 0:00:29]} Bb7 {[%emt 0:00:03]} 8. Be3 {[%emt 0:00:12]} e6 {[%emt 0:00:03]} 9. a4 {[%emt 0:00:14]} b4 {[%emt 0:00:06]} 10. Nb1 {[%emt 0:00:42]} Nbd7 {[%emt 0:00:52]} 11. Nbd2 {[%emt 0:00:04]} Be7 {[%emt 0:00:15]} 12. Nc4 {[%emt 0:00:02]} Qd5 {[%emt 0:00:06]} 13. O-O {[%emt 0:00:38]} c5 {[%emt 0:00:19]} 14. dxc5 {[%emt 0:00:21]} Bxc5 {[%emt 0:00:28]} 15. Bxc5 {[%emt 0:00:07]} Qxc5 {[%emt 0:00:04]} 16. Re1 {[%emt 0:01:14]} O-O {[%emt 0:00:45]} 17. Nfe5 {[%emt 0:01:10]} Qd5 {[%emt 0:01:39]} 18. Qf3 {[%emt 0:01:14]} Qxf3 {[%emt 0:00:56]} 19. Nxf3 {[%emt 0:00:12]} Bxf3 {[%emt 0:00:11]} 20. gxf3 {[%emt 0:00:04]} Nc5 {[%emt 0:00:40]} 21. Be4 {[%emt 0:00:13]} Rfd8 {[%emt 0:00:27]} 22. Bxa8 {[%emt 0:00:05]} Rxa8 {[%emt 0:00:04]} 23. Rad1 {[%emt 0:00:08]} Nd5 {[%emt 0:00:08]} 24. a5 {[%emt 0:00:34]} g5 {[%emt 0:01:05]} 25. Nb6 {[%emt 0:00:07]} Nxb6 {[%emt 0:00:14]} 26. axb6 {[%emt 0:00:01]} Rb8 {[%emt 0:00:33]} 27. Rd6 {[%emt 0:00:05]} Na4 {[%emt 0:00:33]} 28. Re4 {[%emt 0:00:24]} a5 {[%emt 0:00:23]} 29. Re5 {[%emt 0:00:21]} Nxb2 {[%emt 0:01:31]} 30. Rxg5+ {[%emt 0:00:13]} Kf8 {[%emt 0:00:03]} 31. Rc6 {[%emt 0:00:04]} a4 {[%emt 0:00:12]} 32. Rb5 {[%emt 0:00:43]} a3 {[%emt 0:01:00]} 33. b7 {[%emt 0:00:07]} Kg7 {[%emt 0:00:16]} 34. Rxb4 {[%emt 0:00:35]} Na4 {[%emt 0:02:38]} 35. Rxa4 {[%emt 0:00:08]} Rxb7 {[%emt 0:00:00]} 36. Rxa3 {[%emt 0:00:02]} h5 {[%emt 0:00:02]} 37. Rb3 {[%emt 0:00:04]} Ra7 {[%emt 0:00:03]} 38. Kg2 {[%emt 0:00:04]} Kf6 {[%emt 0:00:05]} 39. c4 {[%emt 0:00:11]} Kf5 {[%emt 0:00:21]} 40. Rd3 {[%emt 0:00:08]} e5 {[%emt 0:00:11]} 41. Rdd6 {[%emt 0:00:09]} 0-1

[Event "Wuerttemberg Rapid Teams 2024"]
[Site "B?blingen, Germany"]
[Date "2024.04.13"]
[Round "4.22"]
[White "Kaufmann, Thorsten"]
[Black "Gabriel, Josef"]
[Result "1/2-1/2"]
[ECO "B06"]
[WhiteElo "2057"]
[BlackElo "1997"]
[Annotator "RC"]
[PlyCount "143"]
[EventDate "2024.04.13"]
[EventType "team-tourn"]
[SourceTitle "playchess.com"]
[Source "ChessBase"]
[SourceQuality "1"]
[TimeControl "900+5"]

1. e4 {[%emt 0:00:03]} g6 {[%emt 0:00:03]} 2. d4 {[%emt 0:00:02]} d6 {[%emt 0:00:01]} 3. Nc3 {[%emt 0:00:02]} Bg7 {[%emt 0:00:06]} 4. Bc4 {[%emt 0:00:02]} e6 {[%emt 0:00:02]} 5. Nf3 {[%emt 0:00:08]} a6 {[%emt 0:00:03]} 6. a4 {[%emt 0:00:04]} b6 {[%emt 0:00:03]} 7. O-O {[%emt 0:00:02]} Ne7 {[%emt 0:00:02]} 8. Bg5 {[%emt 0:00:03]} Bb7 {[%emt 0:00:16]} 9. Qd2 {[%emt 0:00:03]} h6 {[%emt 0:00:08]} 10. Be3 {[%emt 0:00:05]} Nd7 {[%emt 0:00:01]} 11. Rfe1 {[%emt 0:00:05]} Nf6 {[%emt 0:00:28]} 12. e5 {[%emt 0:00:27]} dxe5 {[%emt 0:00:41]} 13. Nxe5 {[%emt 0:00:08]} Ned5 {[%emt 0:00:07]} 14. Nxd5 {[%emt 0:00:16]} Nxd5 {[%emt 0:00:01]} 15. Rad1 {[%emt 0:00:36]} Nxe3 {[%emt 0:00:08]} 16. Qxe3 {[%emt 0:00:04]} Qg5 {[%emt 0:00:45]} 17. Qxg5 {[%emt 0:00:30]} hxg5 {[%emt 0:00:02]} 18. c3 {[%emt 0:01:00]} Rd8 {[%emt 0:02:05]} 19. b4 {[%emt 0:02:15]} O-O {[%emt 0:00:49]} 20. a5 {[%emt 0:00:06]} bxa5 {[%emt 0:01:42]} 21. bxa5 {[%emt 0:00:02]} c5 {[%emt 0:00:01]} 22. Rb1 {[%emt 0:02:45]} Bd5 {[%emt 0:01:01]} 23. Bxa6 {[%emt 0:00:18]} cxd4 {[%emt 0:00:09]} 24. cxd4 {[%emt 0:00:06]} Ra8 {[%emt 0:00:15]} 25. Rb6 {[%emt 0:00:20]} Rfd8 {[%emt 0:00:49]} 26. h3 {[%emt 0:00:22]} Ra7 {[%emt 0:01:48]} 27. Rc1 {[%emt 0:02:53]} Rda8 {[%emt 0:02:02]} 28. Rc8+ {[%emt 0:00:08]} Rxc8 {[%emt 0:00:29]} 29. Bxc8 {[%emt 0:00:02]} Rxa5 {[%emt 0:00:00]} 30. Bd7 {[%emt 0:00:49]} Bxe5 {[%emt 0:01:28]} 31. dxe5 {[%emt 0:00:02]} Ra1+ {[%emt 0:00:10]} 32. Kh2 {[%emt 0:00:03]} Re1 {[%emt 0:00:01]} 33. Rb8+ {[%emt 0:00:05]} Kg7 {[%emt 0:00:02]} 34. Rc8 {[%emt 0:00:29]} Rxe5 {[%emt 0:00:04]} 35. Rc7 {[%emt 0:00:01]} Rf5 {[%emt 0:00:08]} 36. Kg3 {[%emt 0:00:16]} Rf4 {[%emt 0:00:10]} 37. f3 {[%emt 0:00:11]} e5 {[%emt 0:00:11]} 38. Rc5 {[%emt 0:00:12]} Rd4 {[%emt 0:00:12]} 39. Bc6 {[%emt 0:00:10]} Bxc6 {[%emt 0:00:07]} 40. Rxc6 {[%emt 0:00:01]} f6 {[%emt 0:00:37]} 41. Rc7+ {[%emt 0:00:02]} Kf8 {[%emt 0:00:12]} 42. Rc6 {[%emt 0:00:12]} Ke7 {[%emt 0:00:02]} 43. Rc7+ {[%emt 0:00:03]} Ke6 {[%emt 0:00:00]} 44. Rc6+ {[%emt 0:00:02]} Kf5 {[%emt 0:00:01]} 45. Ra6 {[%emt 0:00:13]} Rb4 {[%emt 0:00:09]} 46. Rc6 {[%emt 0:00:03]} Rd4 {[%emt 0:00:11]} 47. Ra6 {[%emt 0:00:02]} Rd7 {[%emt 0:00:01]} 48. Rb6 {[%emt 0:00:07]} Re7 {[%emt 0:00:00]} 49. Kf2 {[%emt 0:00:02]} e4 {[%emt 0:00:29]} 50. g4+ {[%emt 0:00:06]} Ke5 {[%emt 0:00:00]} 51. fxe4 {[%emt 0:00:08]} Ra7 {[%emt 0:00:10]} 52. Rb5+ {[%emt 0:00:10]} Kxe4 {[%emt 0:00:03]} 53. Rb4+ {[%emt 0:00:02]} Ke5 {[%emt 0:00:04]} 54. Rb5+ {[%emt 0:00:01]} Ke6 {[%emt 0:00:01]} 55. Rb6+ {[%emt 0:00:03]} Kf7 {[%emt 0:00:02]} 56. Rb3 {[%emt 0:00:04]} Kg7 {[%emt 0:00:06]} 57. Kg3 {[%emt 0:00:07]} Ra6 {[%emt 0:00:02]} 58. Rc3 {[%emt 0:00:02]} Kh6 {[%emt 0:00:01]} 59. Rf3 {[%emt 0:00:21]} Kg7 {[%emt 0:00:09]} 60. Rb3 {[%emt 0:00:02]} f5 {[%emt 0:00:02]} 61. h4 {[%emt 0:00:15]} gxh4+ {[%emt 0:00:11]} 62. Kxh4 {[%emt 0:00:13]} Ra4 {[%emt 0:00:01]} 63. Rg3 {[%emt 0:00:04]} Kh6 {[%emt 0:00:05]} 64. Kh3 {[%emt 0:00:02]} f4 {[%emt 0:00:45]} 65. Rb3 {[%emt 0:00:04]} Re4 {[%emt 0:00:03]} 66. Rb6 {[%emt 0:00:28]} Re3+ {[%emt 0:00:04]} 67. Kh4 {[%emt 0:00:02]} Re7 {[%emt 0:00:15]} 68. g5+ {[%emt 0:00:02]} Kg7 {[%emt 0:00:04]} 69. Rf6 {[%emt 0:00:02]} Rf7 {[%emt 0:00:01]} 70. Kg4 {[%emt 0:00:13]} Rxf6 {[%emt 0:00:02]} 71. gxf6+ {[%emt 0:00:01]} Kxf6 {[%emt 0:00:01]} 72. Kxf4 {[%emt 0:00:01]} 1/2-1/2